[Event "Late-Titled-Tuesday-Blitz-May-07-2024"]
[Site "Chess.com"]
[Date "2024.05.07"]
[Round "2"]
[White "Eloist"]
[Black "Denmark2015"]
[Result "1-0"]
[WhiteElo "2401"]
[BlackElo "2588"]
[TimeControl "180+1"]
[EndTime "14:18:25 PDT"]
[Termination "Eloist won by resignation"]

1. e4 {[%clk 0:03:00.9]} 1... e6 {[%clk 0:03:00.9]} 2. d4 {[%clk 0:03:00.4]}
2... d5 {[%clk 0:03:00.7]} 3. Nd2 {[%clk 0:03:00.6]} 3... Be7 {[%clk 0:03:00.4]}
4. e5 {[%clk 0:03:00.1]} 4... c5 {[%clk 0:03:00.3]} 5. c3 {[%clk 0:03:00.2]}
5... cxd4 {[%clk 0:02:59.4]} 6. cxd4 {[%clk 0:02:59.8]} 6... Qb6 {[%clk
0:03:00.3]} 7. Ndf3 {[%clk 0:02:56.6]} 7... Nc6 {[%clk 0:02:55.9]} 8. Bd3 {[%clk
0:02:55]} 8... Bb4+ {[%clk 0:02:53.6]} 9. Bd2 {[%clk 0:02:19]} 9... Nxd4 {[%clk
0:02:48.1]} 10. Nxd4 {[%clk 0:02:06.3]} 10... Qxd4 {[%clk 0:02:46.9]} 11. Bb5+
{[%clk 0:01:37.6]} 11... Kf8 {[%clk 0:02:42.1]} 12. Nf3 {[%clk 0:01:19.9]} 12...
Bxd2+ {[%clk 0:02:39.1]} 13. Qxd2 {[%clk 0:01:18.6]} 13... Qxd2+ {[%clk
0:02:36.9]} 14. Kxd2 {[%clk 0:01:18.7]} 14... a6 {[%clk 0:02:34.6]} 15. Ba4
{[%clk 0:01:12.7]} 15... b5 {[%clk 0:02:33.7]} 16. Bb3 {[%clk 0:01:05.2]} 16...
Bd7 {[%clk 0:02:24.6]} 17. Rac1 {[%clk 0:01:04.1]} 17... Ke8 {[%clk 0:02:20.3]}
18. Rc7 {[%clk 0:01:00.2]} 18... Kd8 {[%clk 0:01:56.3]} 19. Rhc1 {[%clk
0:00:59.7]} 19... a5 {[%clk 0:01:10.8]} 20. Ng5 {[%clk 0:00:56.2]} 20... Nh6
{[%clk 0:01:09.6]} 21. Rb7 {[%clk 0:00:45]} 21... a4 {[%clk 0:00:31.2]} 22. Bd1
{[%clk 0:00:43.3]} 22... Rc8 {[%clk 0:00:29.9]} 23. Rxc8+ {[%clk 0:00:40.2]}
23... Kxc8 {[%clk 0:00:29.5]} 24. Ra7 {[%clk 0:00:39.2]} 24... Rd8 {[%clk
0:00:19.7]} 25. Nxh7 {[%clk 0:00:32.9]} 25... Kb8 {[%clk 0:00:19.7]} 26. Ra6
{[%clk 0:00:29.2]} 26... Kb7 {[%clk 0:00:20.1]} 27. Ra5 {[%clk 0:00:16.2]} 27...
Kb6 {[%clk 0:00:20]} 28. b4 {[%clk 0:00:16]} 28... Nf5 {[%clk 0:00:18.6]} 29.
Ng5 {[%clk 0:00:13.3]} 29... Be8 {[%clk 0:00:18.9]} 30. Bc2 {[%clk 0:00:12.4]}
30... Nd4 {[%clk 0:00:18.2]} 31. Bd3 {[%clk 0:00:11.1]} 31... Rc8 {[%clk
0:00:16.7]} 32. f4 {[%clk 0:00:10.9]} 32... f5 {[%clk 0:00:15.1]} 33. h3 {[%clk
0:00:09.6]} 33... Bd7 {[%clk 0:00:15.1]} 34. g4 {[%clk 0:00:09.7]} 34... Rf8
{[%clk 0:00:11.8]} 35. Ke3 {[%clk 0:00:08.2]} 35... fxg4 {[%clk 0:00:11.8]} 36.
hxg4 {[%clk 0:00:08.1]} 36... Rh8 {[%clk 0:00:12.2]} 37. Kxd4 {[%clk 0:00:06.4]}
37... Rh2 {[%clk 0:00:11]} 38. f5 {[%clk 0:00:06.2]} 38... exf5 {[%clk
0:00:08.8]} 39. gxf5 {[%clk 0:00:06.8]} 39... Rb2 {[%clk 0:00:09.1]} 40. e6
{[%clk 0:00:06.9]} 40... Rxb4+ {[%clk 0:00:08.8]} 41. Kc3 {[%clk 0:00:07]} 41...
Kxa5 {[%clk 0:00:07.9]} 42. exd7 {[%clk 0:00:06.5]} 42... d4+ {[%clk 0:00:08.8]}
43. Kc2 {[%clk 0:00:05.7]} 43... a3 {[%clk 0:00:09.3]} 44. d8=Q+ {[%clk
0:00:05.3]} 44... Ka6 {[%clk 0:00:09.7]} 45. Qc8+ {[%clk 0:00:05.3]} 45... Kb6
{[%clk 0:00:09.4]} 46. Qb8+ {[%clk 0:00:05.1]} 46... Kc6 {[%clk 0:00:07.7]} 47.
Qe8+ {[%clk 0:00:04]} 47... Kb6 {[%clk 0:00:07.8]} 48. Qe6+ {[%clk 0:00:03.9]}
48... Ka7 {[%clk 0:00:07.7]} 49. Qd7+ {[%clk 0:00:03]} 49... Ka6 {[%clk
0:00:07.8]} 50. Qd6+ {[%clk 0:00:03.1]} 50... Ka5 {[%clk 0:00:08.1]} 51. Qc7+
{[%clk 0:00:03.5]} 51... Ka6 {[%clk 0:00:08.3]} 52. Ne6 {[%clk 0:00:03.7]} 52...
Rb2+ {[%clk 0:00:07.9]} 53. Kc1 {[%clk 0:00:04.1]} 53... Rc2+ {[%clk 0:00:04.2]}
54. Bxc2 {[%clk 0:00:03.6]} 1-0

[Event "Late-Titled-Tuesday-Blitz-May-07-2024"]
[Site "Chess.com"]
[Date "2024.05.07"]
[Round "2"]
[White "Sandstad"]
[Black "1800_strength"]
[Result "0-1"]
[WhiteElo "2434"]
[BlackElo "2794"]
[TimeControl "180+1"]
[EndTime "14:18:26 PDT"]
[Termination "1800_strength won on time"]

1. e4 {[%clk 0:03:00.9]} 1... a5 {[%clk 0:03:00.9]} 2. d4 {[%clk 0:03:00.1]}
2... Ra6 {[%clk 0:03:01.8]} 3. Bxa6 {[%clk 0:02:57.8]} 3... Nxa6 {[%clk
0:03:02.7]} 4. c3 {[%clk 0:02:57.2]} 4... b6 {[%clk 0:03:03.6]} 5. Nf3 {[%clk
0:02:54.7]} 5... Bb7 {[%clk 0:03:04.5]} 6. Qe2 {[%clk 0:02:53.4]} 6... g6 {[%clk
0:03:05.4]} 7. Bg5 {[%clk 0:02:51.3]} 7... Bg7 {[%clk 0:03:05.9]} 8. Nbd2 {[%clk
0:02:50.8]} 8... h6 {[%clk 0:03:06.4]} 9. Bh4 {[%clk 0:02:49.5]} 9... Qa8 {[%clk
0:03:06.4]} 10. O-O {[%clk 0:02:47.7]} 10... e6 {[%clk 0:03:07.1]} 11. Rfe1
{[%clk 0:02:47]} 11... Ne7 {[%clk 0:03:04.6]} 12. Rad1 {[%clk 0:02:46.2]} 12...
Qd8 {[%clk 0:02:47.5]} 13. h3 {[%clk 0:02:42.4]} 13... O-O {[%clk 0:02:47.8]}
14. e5 {[%clk 0:02:30.4]} 14... g5 {[%clk 0:02:41.4]} 15. Bg3 {[%clk 0:02:30.1]}
15... Nf5 {[%clk 0:02:35.3]} 16. Bh2 {[%clk 0:02:29.4]} 16... Qa8 {[%clk
0:02:23.1]} 17. Ne4 {[%clk 0:02:19.3]} 17... Nb8 {[%clk 0:02:23]} 18. Nfd2
{[%clk 0:02:04.8]} 18... Kh8 {[%clk 0:02:14.6]} 19. f4 {[%clk 0:02:04]} 19...
gxf4 {[%clk 0:02:08.1]} 20. Bxf4 {[%clk 0:02:04.9]} 20... Nc6 {[%clk 0:02:07.5]}
21. Qh5 {[%clk 0:02:01.4]} 21... Nce7 {[%clk 0:01:48]} 22. g4 {[%clk 0:01:42.2]}
22... Ng6 {[%clk 0:01:48.4]} 23. Bh2 {[%clk 0:01:33.2]} 23... Nfe7 {[%clk
0:01:32.3]} 24. Re2 {[%clk 0:01:21.6]} 24... Ba6 {[%clk 0:01:18.3]} 25. Rf2
{[%clk 0:01:19.2]} 25... Bd3 {[%clk 0:01:14.9]} 26. Re1 {[%clk 0:01:19.1]} 26...
c5 {[%clk 0:01:05.2]} 27. g5 {[%clk 0:01:11.1]} 27... Ng8 {[%clk 0:01:04]} 28.
Nd6 {[%clk 0:00:58.5]} 28... cxd4 {[%clk 0:00:53.9]} 29. Rxf7 {[%clk 0:00:50.9]}
29... dxc3 {[%clk 0:00:37.8]} 30. bxc3 {[%clk 0:00:49.1]} 30... Rxf7 {[%clk
0:00:31.7]} 31. Nxf7+ {[%clk 0:00:48.2]} 31... Kh7 {[%clk 0:00:32.4]} 32. Nf3
{[%clk 0:00:27.2]} 32... Qf8 {[%clk 0:00:22]} 33. gxh6 {[%clk 0:00:24]} 33...
Nxh6 {[%clk 0:00:22.9]} 34. N3g5+ {[%clk 0:00:22]} 34... Kg8 {[%clk 0:00:23.1]}
35. Nxh6+ {[%clk 0:00:18.3]} 35... Bxh6 {[%clk 0:00:22.8]} 36. Re3 {[%clk
0:00:15.4]} 36... Bf5 {[%clk 0:00:17.5]} 37. Rg3 {[%clk 0:00:15.2]} 37... Qc5+
{[%clk 0:00:17.1]} 38. Kg2 {[%clk 0:00:12.5]} 38... Bxg5 {[%clk 0:00:16.2]} 39.
Qxg5 {[%clk 0:00:11]} 39... Qd5+ {[%clk 0:00:15.6]} 40. Kf1 {[%clk 0:00:09.7]}
40... Qd1+ {[%clk 0:00:15.7]} 41. Kf2 {[%clk 0:00:09.8]} 41... Qc2+ {[%clk
0:00:16.2]} 42. Kf1 {[%clk 0:00:09.2]} 42... Kf7 {[%clk 0:00:13.3]} 43. Qe3
{[%clk 0:00:07.1]} 43... Qb1+ {[%clk 0:00:08.3]} 44. Kf2 {[%clk 0:00:05.9]}
44... Qxa2+ {[%clk 0:00:08.6]} 45. Qe2 {[%clk 0:00:06]} 45... Qd5 {[%clk
0:00:07.9]} 46. Rf3 {[%clk 0:00:04.1]} 46... a4 {[%clk 0:00:07.9]} 47. h4 {[%clk
0:00:02.9]} 47... Nxh4 {[%clk 0:00:07.4]} 48. Rh3 {[%clk 0:00:02.4]} 48... Ng6
{[%clk 0:00:06.9]} 49. Rh7+ {[%clk 0:00:01.6]} 49... Kg8 {[%clk 0:00:07.5]} 50.
Qh5 {[%clk 0:00:01.4]} 50... Qd2+ {[%clk 0:00:08]} 51. Kg3 {[%clk 0:00:00.8]}
51... Qe3+ {[%clk 0:00:08.5]} 52. Kg2 {[%clk 0:00:00.9]} 52... Be4+ {[%clk
0:00:09.1]} 53. Kf1 {[%clk 0:00:00.6]} 53... Bd3+ {[%clk 0:00:09.5]} 54. Kg2
{[%clk 0:00:00.6]} 54... Qd2+ {[%clk 0:00:09.9]} 0-1

[Event "Late-Titled-Tuesday-Blitz-May-07-2024"]
[Site "Chess.com"]
[Date "2024.05.07"]
[Round "2"]
[White "yaguigor"]
[Black "Airquake"]
[Result "1-0"]
[WhiteElo "2595"]
[BlackElo "2838"]
[TimeControl "180+1"]
[EndTime "14:18:28 PDT"]
[Termination "yaguigor won by resignation"]

1. e4 {[%clk 0:03:00.9]} 1... c5 {[%clk 0:02:50.8]} 2. Nf3 {[%clk 0:03:00.5]}
2... d6 {[%clk 0:02:50.9]} 3. d4 {[%clk 0:03:00.4]} 3... cxd4 {[%clk 0:02:51.8]}
4. Nxd4 {[%clk 0:03:00.6]} 4... Nf6 {[%clk 0:02:51.5]} 5. Nc3 {[%clk 0:03:00.5]}
5... a6 {[%clk 0:02:51.9]} 6. f3 {[%clk 0:02:59.9]} 6... g6 {[%clk 0:02:51.7]}
7. Be3 {[%clk 0:02:59.1]} 7... Bg7 {[%clk 0:02:52.1]} 8. Qd2 {[%clk 0:02:59.1]}
8... h5 {[%clk 0:02:51.1]} 9. Bc4 {[%clk 0:02:57.1]} 9... Qc7 {[%clk 0:02:50.9]}
10. Bb3 {[%clk 0:02:57]} 10... b5 {[%clk 0:02:50.8]} 11. a4 {[%clk 0:02:52.9]}
11... bxa4 {[%clk 0:02:35.5]} 12. Bxa4+ {[%clk 0:02:40.3]} 12... Bd7 {[%clk
0:02:35.2]} 13. O-O {[%clk 0:02:37.3]} 13... O-O {[%clk 0:02:32.5]} 14. Nd5
{[%clk 0:02:27.2]} 14... Nxd5 {[%clk 0:02:29.9]} 15. exd5 {[%clk 0:02:28.1]}
15... Bxa4 {[%clk 0:02:22.8]} 16. Rxa4 {[%clk 0:02:26.7]} 16... Nd7 {[%clk
0:02:16.7]} 17. Nc6 {[%clk 0:02:19.7]} 17... e6 {[%clk 0:02:13.2]} 18. c4 {[%clk
0:02:18.1]} 18... exd5 {[%clk 0:02:09]} 19. cxd5 {[%clk 0:02:17.5]} 19... Rfe8
{[%clk 0:02:09.2]} 20. Rc4 {[%clk 0:02:11.5]} 20... Nb6 {[%clk 0:01:54.6]} 21.
Rc2 {[%clk 0:01:58.6]} 21... Kh7 {[%clk 0:01:43.6]} 22. Bd4 {[%clk 0:01:56.1]}
22... Nd7 {[%clk 0:01:36.5]} 23. Bxg7 {[%clk 0:01:55.3]} 23... Kxg7 {[%clk
0:01:36.5]} 24. Qd4+ {[%clk 0:01:55.9]} 24... Kh7 {[%clk 0:01:31.3]} 25. Kh1
{[%clk 0:01:47.9]} 25... Qb6 {[%clk 0:01:25.9]} 26. Qf4 {[%clk 0:01:45.5]} 26...
Kg7 {[%clk 0:01:21.6]} 27. Qxd6 {[%clk 0:01:44.5]} 27... Nf6 {[%clk 0:01:10.5]}
28. Qc5 {[%clk 0:01:39.8]} 28... Qb3 {[%clk 0:01:08.9]} 29. d6 {[%clk
0:01:23.7]} 29... Re6 {[%clk 0:01:08.5]} 30. Rd2 {[%clk 0:01:20.2]} 30... Rc8
{[%clk 0:00:58]} 31. Nd4 {[%clk 0:01:13]} 31... Rxc5 {[%clk 0:00:47.8]} 32. Nxb3
{[%clk 0:01:13.3]} 32... Rc6 {[%clk 0:00:43.6]} 33. Rfd1 {[%clk 0:01:04.4]}
33... Rb6 {[%clk 0:00:43.9]} 34. Nc5 {[%clk 0:01:02]} 34... Re8 {[%clk
0:00:40.2]} 35. g3 {[%clk 0:00:54.3]} 35... Rd8 {[%clk 0:00:35.9]} 36. Kg2
{[%clk 0:00:50.6]} 36... Rc6 {[%clk 0:00:34.4]} 37. Ne4 {[%clk 0:00:48.8]} 37...
Ne8 {[%clk 0:00:31.9]} 38. d7 {[%clk 0:00:47.3]} 38... Nc7 {[%clk 0:00:30.9]}
39. Rd6 {[%clk 0:00:44.5]} 39... Rc2+ {[%clk 0:00:26.8]} 40. R1d2 {[%clk
0:00:44.6]} 40... Rxd2+ {[%clk 0:00:21.3]} 41. Rxd2 {[%clk 0:00:41.3]} 41... Kf8
{[%clk 0:00:22]} 42. Nc5 {[%clk 0:00:40.6]} 42... Ke7 {[%clk 0:00:20.4]} 43. f4
{[%clk 0:00:38.7]} 43... Rb8 {[%clk 0:00:17.2]} 44. Kf3 {[%clk 0:00:35.7]} 44...
Ne6 {[%clk 0:00:07.6]} 45. Nxe6 {[%clk 0:00:34.1]} 45... fxe6 {[%clk 0:00:08.5]}
46. d8=Q+ {[%clk 0:00:31.8]} 46... Rxd8 {[%clk 0:00:08.5]} 47. Rxd8 {[%clk
0:00:32.5]} 47... Kxd8 {[%clk 0:00:09]} 48. Ke4 {[%clk 0:00:32.8]} 48... Kd7
{[%clk 0:00:08.6]} 49. Ke5 {[%clk 0:00:32.9]} 49... Ke7 {[%clk 0:00:09]} 50. b4
{[%clk 0:00:32.3]} 50... Kd7 {[%clk 0:00:02.9]} 51. Kf6 {[%clk 0:00:30.3]} 51...
Kc6 {[%clk 0:00:03.5]} 52. Kxe6 {[%clk 0:00:20.7]} 52... Kb5 {[%clk 0:00:04]}
53. Kf6 {[%clk 0:00:19.8]} 53... Kxb4 {[%clk 0:00:04.2]} 54. Kxg6 {[%clk
0:00:18.9]} 54... a5 {[%clk 0:00:04.8]} 55. f5 {[%clk 0:00:19.6]} 55... a4
{[%clk 0:00:05.7]} 56. f6 {[%clk 0:00:20.2]} 56... a3 {[%clk 0:00:06.6]} 57. f7
{[%clk 0:00:20.8]} 57... a2 {[%clk 0:00:07.5]} 58. f8=Q+ {[%clk 0:00:21.4]}
58... Kc4 {[%clk 0:00:07.6]} 59. Qf7+ {[%clk 0:00:21.1]} 1-0

[Event "Late-Titled-Tuesday-Blitz-May-07-2024"]
[Site "Chess.com"]
[Date "2024.05.07"]
[Round "2"]
[White "Vincefm"]
[Black "HipsterChess22"]
[Result "0-1"]
[WhiteElo "2494"]
[BlackElo "2229"]
[TimeControl "180+1"]
[EndTime "14:18:29 PDT"]
[Termination "HipsterChess22 won by checkmate"]

1. e4 {[%clk 0:03:00.9]} 1... c6 {[%clk 0:02:59.4]} 2. d4 {[%clk 0:03:00.5]}
2... d5 {[%clk 0:03:00.3]} 3. Nc3 {[%clk 0:03:00.8]} 3... dxe4 {[%clk
0:02:59.9]} 4. Nxe4 {[%clk 0:03:01.7]} 4... Nf6 {[%clk 0:03:00.2]} 5. Nxf6+
{[%clk 0:02:57.7]} 5... exf6 {[%clk 0:03:01.1]} 6. c3 {[%clk 0:02:58.6]} 6...
Bd6 {[%clk 0:03:01.3]} 7. Bd3 {[%clk 0:02:59.4]} 7... O-O {[%clk 0:03:00.9]} 8.
Qc2 {[%clk 0:02:59]} 8... Re8+ {[%clk 0:03:00.2]} 9. Ne2 {[%clk 0:02:59.7]} 9...
h5 {[%clk 0:03:00.1]} 10. O-O {[%clk 0:03:00.3]} 10... h4 {[%clk 0:02:58.1]} 11.
h3 {[%clk 0:03:00.7]} 11... Nd7 {[%clk 0:02:55.8]} 12. Bd2 {[%clk 0:02:59.1]}
12... Nf8 {[%clk 0:02:55.3]} 13. Rae1 {[%clk 0:02:59.2]} 13... Be6 {[%clk
0:02:51]} 14. f4 {[%clk 0:02:31.3]} 14... b5 {[%clk 0:02:12.2]} 15. b3 {[%clk
0:02:28.6]} 15... Rc8 {[%clk 0:02:09.1]} 16. c4 {[%clk 0:02:19.1]} 16... Bb8
{[%clk 0:02:04.8]} 17. Bc3 {[%clk 0:02:13.6]} 17... Qd6 {[%clk 0:01:58.8]} 18.
Kh1 {[%clk 0:01:49.2]} 18... g6 {[%clk 0:01:57.3]} 19. Ng1 {[%clk 0:01:46.9]}
19... f5 {[%clk 0:01:56.2]} 20. Qf2 {[%clk 0:01:43.5]} 20... g5 {[%clk
0:01:25.8]} 21. Qc2 {[%clk 0:01:21.4]} 21... Ng6 {[%clk 0:01:18.1]} 22. d5
{[%clk 0:00:10.2]} 22... Bd7 {[%clk 0:01:13.3]} 23. Rxe8+ {[%clk 0:00:04.7]}
23... Rxe8 {[%clk 0:01:11.1]} 24. Bxf5 {[%clk 0:00:05.2]} 24... Nxf4 {[%clk
0:01:00.7]} 25. Nf3 {[%clk 0:00:05.3]} 25... Re2 {[%clk 0:00:51.9]} 26. Qb1
{[%clk 0:00:02.7]} 26... Rxg2 {[%clk 0:00:43.5]} 27. Be5 {[%clk 0:00:02.4]}
27... Qf8 {[%clk 0:00:32.8]} 28. Bxb8 {[%clk 0:00:02.7]} 28... Qxb8 {[%clk
0:00:33.7]} 29. Bxd7 {[%clk 0:00:01.9]} 29... Rg3 {[%clk 0:00:30.2]} 30. Qf5
{[%clk 0:00:01.4]} 30... Nxh3 {[%clk 0:00:22.8]} 31. Qxh3 {[%clk 0:00:00.6]}
31... Rxh3+ {[%clk 0:00:21.7]} 32. Bxh3 {[%clk 0:00:01.5]} 32... Qg3 {[%clk
0:00:20.6]} 33. Ng1 {[%clk 0:00:02.4]} 33... cxd5 {[%clk 0:00:18.4]} 34. cxd5
{[%clk 0:00:02.6]} 34... Qd3 {[%clk 0:00:16.4]} 35. Rf3 {[%clk 0:00:01.7]} 35...
Qxd5 {[%clk 0:00:16]} 36. Bg2 {[%clk 0:00:02.6]} 36... f5 {[%clk 0:00:15.1]} 37.
Rc3 {[%clk 0:00:01.5]} 37... Qe5 {[%clk 0:00:14.4]} 38. Nf3 {[%clk 0:00:01.3]}
38... Qxc3 {[%clk 0:00:11.4]} 39. Nxg5 {[%clk 0:00:01.4]} 39... Qa1+ {[%clk
0:00:10.4]} 40. Kh2 {[%clk 0:00:01.6]} 40... Qxa2 {[%clk 0:00:10.5]} 41. Kh3
{[%clk 0:00:02.5]} 41... Qxb3+ {[%clk 0:00:10.2]} 42. Kxh4 {[%clk 0:00:03]}
42... a5 {[%clk 0:00:08.8]} 43. Kh5 {[%clk 0:00:03.2]} 43... a4 {[%clk 0:00:09]}
44. Kg6 {[%clk 0:00:03.4]} 44... a3 {[%clk 0:00:09.9]} 45. Bc6 {[%clk
0:00:03.4]} 45... a2 {[%clk 0:00:10.8]} 46. Be8 {[%clk 0:00:02.8]} 46... a1=Q
{[%clk 0:00:07.8]} 47. Bf7+ {[%clk 0:00:03.7]} 47... Qxf7+ {[%clk 0:00:06.3]}
48. Nxf7 {[%clk 0:00:04.6]} 48... Qg7+ {[%clk 0:00:06]} 49. Kxf5 {[%clk
0:00:05.5]} 49... Qxf7+ {[%clk 0:00:06.7]} 50. Ke4 {[%clk 0:00:06.4]} 50... b4
{[%clk 0:00:07.2]} 51. Kd4 {[%clk 0:00:07.3]} 51... b3 {[%clk 0:00:08]} 52. Kc3
{[%clk 0:00:08]} 52... Qe6 {[%clk 0:00:08.8]} 53. Kb2 {[%clk 0:00:08.9]} 53...
Kf7 {[%clk 0:00:09.5]} 54. Kc3 {[%clk 0:00:09.8]} 54... Ke7 {[%clk 0:00:10.1]}
55. Kb2 {[%clk 0:00:10.7]} 55... Kd6 {[%clk 0:00:10.9]} 56. Kc3 {[%clk
0:00:11.6]} 56... Kc5 {[%clk 0:00:11.7]} 57. Kb2 {[%clk 0:00:12.5]} 57... Qc4
{[%clk 0:00:12.3]} 58. Ka3 {[%clk 0:00:12.8]} 58... b2 {[%clk 0:00:12]} 59. Kxb2
{[%clk 0:00:13.7]} 59... Kb4 {[%clk 0:00:12.6]} 60. Kb1 {[%clk 0:00:13.6]} 60...
Kb3 {[%clk 0:00:13.2]} 61. Ka1 {[%clk 0:00:13.7]} 61... Qc1# {[%clk 0:00:13.3]}
0-1

[Event "Late-Titled-Tuesday-Blitz-May-07-2024"]
[Site "Chess.com"]
[Date "2024.05.07"]
[Round "2"]
[White "JG-17"]
[Black "GMKrikor"]
[Result "0-1"]
[WhiteElo "2574"]
[BlackElo "2837"]
[TimeControl "180+1"]
[EndTime "14:18:32 PDT"]
[Termination "GMKrikor won by resignation"]

1. e4 {[%clk 0:03:00.9]} 1... c5 {[%clk 0:02:59.8]} 2. Nf3 {[%clk 0:03:00.6]}
2... Nc6 {[%clk 0:03:00.5]} 3. d4 {[%clk 0:03:01.1]} 3... cxd4 {[%clk
0:03:01.4]} 4. Nxd4 {[%clk 0:03:01.8]} 4... Nf6 {[%clk 0:03:01.8]} 5. Nc3 {[%clk
0:03:02.1]} 5... e5 {[%clk 0:03:02.4]} 6. Ndb5 {[%clk 0:03:02.1]} 6... d6 {[%clk
0:03:02.9]} 7. Bg5 {[%clk 0:03:02.8]} 7... a6 {[%clk 0:03:03.2]} 8. Na3 {[%clk
0:03:03.3]} 8... b5 {[%clk 0:03:03.8]} 9. Bxf6 {[%clk 0:03:03.5]} 9... gxf6
{[%clk 0:03:04.7]} 10. Nd5 {[%clk 0:03:04]} 10... Bg7 {[%clk 0:03:04.9]} 11. Bd3
{[%clk 0:03:04.2]} 11... Ne7 {[%clk 0:03:02.9]} 12. Nxe7 {[%clk 0:03:04.3]}
12... Qxe7 {[%clk 0:03:02.6]} 13. O-O {[%clk 0:03:02.4]} 13... O-O {[%clk
0:03:01.7]} 14. Qf3 {[%clk 0:02:46]} 14... f5 {[%clk 0:01:43.2]} 15. exf5 {[%clk
0:02:43.2]} 15... Bb7 {[%clk 0:01:41.4]} 16. f6 {[%clk 0:02:26.3]} 16... Bxf6
{[%clk 0:01:31.2]} 17. Qf5 {[%clk 0:02:24.6]} 17... e4 {[%clk 0:01:30.8]} 18.
Rae1 {[%clk 0:02:22.7]} 18... d5 {[%clk 0:01:24.9]} 19. c3 {[%clk 0:02:09.2]}
19... Bg7 {[%clk 0:01:12.2]} 20. Nc2 {[%clk 0:01:58.9]} 20... Qe6 {[%clk
0:00:48.6]} 21. Qh5 {[%clk 0:01:54.7]} 21... Qg6 {[%clk 0:00:48.5]} 22. Be2
{[%clk 0:01:50]} 22... Qxh5 {[%clk 0:00:46.7]} 23. Bxh5 {[%clk 0:01:50.9]} 23...
f5 {[%clk 0:00:43]} 24. g3 {[%clk 0:01:44.2]} 24... Rfd8 {[%clk 0:00:42.7]} 25.
Rd1 {[%clk 0:01:43.1]} 25... Rac8 {[%clk 0:00:42.1]} 26. Ne3 {[%clk 0:01:40.8]}
26... b4 {[%clk 0:00:32.2]} 27. Nxf5 {[%clk 0:01:36.3]} 27... bxc3 {[%clk
0:00:26.4]} 28. Ne7+ {[%clk 0:01:35.8]} 28... Kf8 {[%clk 0:00:27.1]} 29. Nxc8
{[%clk 0:01:36.3]} 29... Rxc8 {[%clk 0:00:27.3]} 30. bxc3 {[%clk 0:01:35.5]}
30... Rxc3 {[%clk 0:00:26.7]} 31. Rb1 {[%clk 0:01:33.1]} 31... Bc6 {[%clk
0:00:22.8]} 32. Rb8+ {[%clk 0:01:30.2]} 32... Ke7 {[%clk 0:00:22.7]} 33. Rfb1
{[%clk 0:01:24.8]} 33... d4 {[%clk 0:00:17.6]} 34. Rg8 {[%clk 0:01:12.8]} 34...
Be5 {[%clk 0:00:17.6]} 35. Rc8 {[%clk 0:00:55.9]} 35... Kd6 {[%clk 0:00:13.3]}
36. Rd1 {[%clk 0:00:53.3]} 36... d3 {[%clk 0:00:13.4]} 37. f4 {[%clk 0:00:48.7]}
37... Bd4+ {[%clk 0:00:13]} 38. Kg2 {[%clk 0:00:47.4]} 38... Ba4 {[%clk
0:00:10.9]} 39. Rd8+ {[%clk 0:00:40.5]} 39... Kc5 {[%clk 0:00:11.3]} 40. Rc8+
{[%clk 0:00:34.6]} 40... Kb4 {[%clk 0:00:09.6]} 41. Rb1+ {[%clk 0:00:33.3]}
41... Ka3 {[%clk 0:00:10.2]} 42. Rxc3+ {[%clk 0:00:13.7]} 42... Bxc3 {[%clk
0:00:10.7]} 43. Bf7 {[%clk 0:00:13.7]} 43... e3 {[%clk 0:00:10.5]} 44. Bb3
{[%clk 0:00:09.1]} 44... Bc6+ {[%clk 0:00:10]} 45. Kf1 {[%clk 0:00:09.1]} 45...
e2+ {[%clk 0:00:10.7]} 46. Kf2 {[%clk 0:00:09.3]} 46... Bb5 {[%clk 0:00:07.4]}
47. Bd1 {[%clk 0:00:02.4]} 47... exd1=Q {[%clk 0:00:06.7]} 48. Rxd1 {[%clk
0:00:02.4]} 48... d2 {[%clk 0:00:07.3]} 49. f5 {[%clk 0:00:02.5]} 49... Ba4
{[%clk 0:00:07.5]} 50. Ke2 {[%clk 0:00:02.2]} 50... Bxd1+ {[%clk 0:00:07.8]} 51.
Kxd1 {[%clk 0:00:03.1]} 51... Kxa2 {[%clk 0:00:08.7]} 52. g4 {[%clk 0:00:03.8]}
52... Kb3 {[%clk 0:00:09]} 53. g5 {[%clk 0:00:04.3]} 53... a5 {[%clk 0:00:09.3]}
54. h4 {[%clk 0:00:02.4]} 54... a4 {[%clk 0:00:09.7]} 55. h5 {[%clk 0:00:02]}
55... a3 {[%clk 0:00:10.2]} 56. f6 {[%clk 0:00:02.3]} 56... a2 {[%clk
0:00:10.7]} 57. f7 {[%clk 0:00:02.5]} 57... a1=Q+ {[%clk 0:00:11.6]} 58. Ke2
{[%clk 0:00:02.9]} 58... d1=Q+ {[%clk 0:00:12.3]} 0-1